Cogmind - Beta 17.1 @@@ ROGUE MODE // 2026.09.23 @ 18:42:07 Player: MrProgressor Result: Destroyed by C-17 Slicer with Blade Saw Performance ------------- Evolutions (3) 1500 Regions Visited (6) 1200 Robots Destroyed (33) 165 Value Destroyed (628) 628 Prototype IDs (34) 680 Alien Tech Used (0) 0 Bonus (368) 368 TOTAL SCORE: 4541 Bonus ------- Follower Combat Kills 68 Aligned with FarCom 300 Cogmind --------- Core Integrity 0/700 Matter 224/300 Energy 14/100 System Corruption 3% Temperature Cool (2) Movement Flying (37) Location -7/Factory Parts ------- > --- POWER (1) -------- (None) > --- PROPULSION (4) --- Improved Flight Unit Improved Flight Unit > --- UTILITY (6) ------ Lightpack 2.0 Improved Terrain Scan Processor > --- WEAPON (2) ------- (None) > --- INVENTORY (40) --- Heavy Ion Engine Light Deuterium Engine Micro Nuclear Core Micro Nuclear Core Micro Nuclear Core Armored Wheel Improved Hover Unit Gravmag System Xenon Bombardment Thruster Improved Cooling System Improved Cooling System High-capacity Battery (250) Advanced Weight Redist. System Advanced Visual Processing Unit Improved Signal Interpreter Improved Terrain Scanner Melee Analysis Suite Target Analyzer Particle Charger Microactuators Advanced ECM Suite System Shield Heavy Particle Gun Advanced Beam Rifle Improved Spread Laser Improved Spread Laser Plasma Cannon Faulty Cooled Particle Cannon Flak Cannon Improved Grenade Launcher Remote Datajack Plasma Cutter Heavy Hammer Heavy Hammer Peak State ------------ > --- POWER ------------ Micro Nuclear Core > --- PROPULSION ------- Gravmag System Gravmag System Cooled Airjet Cooled Airjet > --- UTILITY ---------- Lightpack 2.0 Improved Terrain Scan Processor Microactuators Improved Utility Shielding > --- WEAPON ----------- Great Maul Axe > --- INVENTORY -------- Heavy Ion Engine Light Deuterium Engine Micro Nuclear Core Micro Nuclear Core Micro Nuclear Core Armored Wheel Improved Hover Unit Gravmag System Gravmag System Gravmag System Improved Flight Unit Improved Flight Unit Xenon Bombardment Thruster Improved Cooling System Improved Cooling System High-capacity Battery Advanced Weight Redist. System Trap Scanner Advanced Visual Processing Unit Improved Signal Interpreter Improved Terrain Scanner Improved Terrain Scan Processor Melee Analysis Suite Target Analyzer Particle Charger Advanced ECM Suite System Shield Heavy Particle Gun Advanced Beam Rifle Improved Spread Laser Improved Spread Laser Plasma Cannon Cooled Particle Cannon Flak Cannon Improved Grenade Launcher Remote Datajack Plasma Cutter Heavy Hammer Heavy Hammer [Rating: 81] Favorites ----------- Power Light Ion Engine Engine Light Ion Engine Power Core Micro Nuclear Core Propulsion Airjet Treads Light Treads Leg Carbon-fiber Leg Wheel Wheel Hover Unit Airjet Flight Unit Flight Unit Utility Improved Terrain Scan Processor Device Terrain Scanner Storage Lightpack 2.0 Processor Improved Terrain Scan Processor Protection Improved Light Armor Plating Weapon Heavy Hammer Energy Gun EM Pulse Gun Ballistic Gun Light Assault Rifle Launcher Mini Grenade Launcher Special Weapon Mining Laser Impact Weapon Heavy Hammer Slashing Weapon Axe Build | -11 -10 -10 -10 -9 -8 -7 ------- Run | Yrd Mat Min Exi Min Mat Fac Slots Evolved 6 | . . . . . 4 2 Power . | . . . . . . . Propulsion 2 | . . . . . 2 . Utility 4 | . . . . . 2 2 Weapon . | . . . . . . . Parts Attached 62 | 4 7 8 1 6 12 24 Power 8 | . 1 1 . 4 . 2 Engine 6 | . 1 1 . 4 . . Core 2 | . . . . . . 2 Reactor . | . . . . . . . Propulsion 23 | 2 2 3 . . 5 11 Treads 2 | . . 2 . . . . Leg 1 | . . . . . 1 . Wheel 2 | 2 . . . . . . Hover 13 | . . . . . 4 9 Flight 5 | . 2 1 . . . 2 Utility 19 | 1 2 2 1 1 4 8 Device 8 | 1 1 2 . . 1 3 Storage 1 | . . . . . 1 . Processor 7 | . 1 . . 1 2 3 Hackware . | . . . . . . . Protection 3 | . . . 1 . . 2 Artifact . | . . . . . . . Weapon 12 | 1 2 2 . 1 3 3 Energy Gun 2 | . . . . . 1 1 Energy Cannon . | . . . . . . . Ballistic Gun 3 | 1 1 1 . . . . Ballistic Cannon . | . . . . . . . Launcher 1 | . . . . 1 . . Special Weapon 2 | . 1 1 . . . . Impact Weapon 3 | . . . . . 2 1 Slashing Weapon 1 | . . . . . . 1 Piercing Weapon . | . . . . . . . Special Melee Weapon . | . . . . . . . Unidentified Prototypes 4 | . . 1 . . 1 2 Parts Lost 22 | . 6 1 . 1 1 13 Power 2 | . 1 . . . . 1 Propulsion 12 | . 2 . . 1 . 9 Utility 4 | . 1 . . . . 3 Weapon 4 | . 2 1 . . 1 . Highest Loss Streak 8 | . 6 1 . 1 1 8 To Critical Strikes 1 | . . . . . . 1 Average Backups 20 | 7 4 4 3 3 7 39 Power 2 | 1 . . . . . 4 Propulsion 4 | 4 3 2 1 . 1 7 Utility 9 | . . 2 2 2 4 17 Weapon 3 | 1 . . . . 1 8 Tool/Special . | . . . . . . . Unused Backups 69 | 7 6 1 . . 2 53 Power 13 | 1 3 . . . . 9 Propulsion 16 | 2 2 . . . 1 11 Utility 24 | 1 . 1 . . . 22 Weapon 14 | 3 1 . . . 1 9 Tool/Special 2 | . . . . . . 2 Average Slot Usage (%) 82 | . 60 91 89 88 82 82 Engine 7 | . 7 14 14 14 9 3 Core 1 | . . . . . . 3 Hover 17 | . . . . . 17 29 Flight 10 | . 15 24 28 28 14 . Device 9 | . 7 15 15 . 4 12 Storage 4 | . 2 . . . 3 7 Processor 7 | . . 6 . 2 13 7 Protection 3 | . . . 3 14 4 2 Ballistic Gun 5 | . 7 14 14 14 5 . Special Weapon 3 | . 10 11 14 11 . . Impact Weapon 7 | . . . . . 4 13 Peak Build Rating 81 | 7 7 19 12 14 56 81 Average Rating 41 | 6 4 10 8 11 34 69 On Entrance 15 | 6 7 7 8 11 14 56 Avg Prop Armor Cover (%) 7 | . . . . . 7 . Naked Turns 29 | . 29 . . . . . Heaviest Build 23 | 15 15 7 8 8 14 23 Greatest Support 40 | 20 20 40 8 8 30 34 Greatest Overweight (x) 3 | 1 . . . . . 3 Average Overweight (x) . | . . . . . . . Largest Inventory Capacity 40 | 8 8 5 5 5 40 40 Average Capacity 24 | 8 5 5 5 5 21 40 Most Carried 40 | 8 8 5 5 5 33 40 Average Carried 21 | 7 4 4 4 4 9 39 Final Capacity 40 | 8 5 5 5 5 40 40 Final Carried 34 | 7 4 5 5 5 33 34 Class Distribution -------------------- 35% | Hauler-Scout 24% | Mutant 18% | Hauler-Mutant 11% | Scavenger-Mutant 9% | Scavenger-Scout Dominant Class ---------------- Mutant | -10/Materials Mutant | -10/Mines Scavenger-Mutant | -10/Exiles Mutant | -9/Mines Scavenger-Scout | -8/Materials Hauler-Scout | -7/Factory Resources | -11 -10 -10 -10 -9 -8 -7 ----------- Run | Yrd Mat Min Exi Min Mat Fac Matter Collected 1028 | 267 . 195 . 118 183 265 Remotely . | . . . . . . . Salvage Created 955 | 107 33 33 . 19 53 710 Parts 42 | 7 3 3 . . . 29 Haulers Intercepted 3 | . . . . . 1 2 Recyclers Shooed . | . . . . . . . Parts Field Recycled . | . . . . . . . Retrieved Matter . | . . . . . . . Parts Self-Destructed . | . . . . . . . Prevented . | . . . . . . . Parts Restored . | . . . . . . . Kills | -11 -10 -10 -10 -9 -8 -7 ------- Run | Yrd Mat Min Exi Min Mat Fac Combat Hostiles Destroyed 21 | . 5 3 . 2 . 11 Melee 8 | . . . . . . 8 Guns 5 | . 2 2 . 1 . . Cannons 1 | . . 1 . . . . AOE 4 | . 3 . . 1 . . Classes Destroyed 9 | 2 2 . . 1 2 2 Worker 1 | . . . . . . 1 Builder 1 | . . . . . 1 . Tunneler 3 | 2 . . . . . 1 Hauler 3 | . . . . . 1 2 Recycler 5 | 1 . . . . . 4 Watcher 1 | . 1 . . . . . Swarmer 15 | . 5 3 . . . 7 Programmer 4 | . . . . . . 4 Assembled 2 | . . . . 2 . . Best Kill Streak 6 | 1 5 2 . 1 1 6 Combat Bots Only 5 | . 5 2 . 1 . 3 Max Kills in Single Turn 4 | 1 4 1 . 1 1 1 Gunslinging . | . . . . . . . Exploded 3 | . 3 . . 1 . . Melee 1 | . . . . . . 1 Uniques/NPCs Destroyed . | . . . . . . . Combat | -11 -10 -10 -10 -9 -8 -7 -------- Run | Yrd Mat Min Exi Min Mat Fac Hostile Shots Fired 221 | . 44 22 . 7 12 136 Missed 72 | . 16 2 . 4 6 44 Hits 149 | . 28 20 . 3 6 92 Melee 19 | . . . . . . 19 Projectile 130 | . 28 20 . 3 6 73 AOE 7 | . . . . . . 7 Critical Strikes 8 | . . . . . . 8 Damage Taken 2806 | . 450 199 . 51 85 2021 Core 851 | . 101 30 . 16 . 704 Absorbed by Shields . | . . . . . . . Redirected to Shielding 101 | . . . . . . 101 Regen/Repaired (Parts) 27 | . . . . . . 27 Core Remaining (%) 80 | 100 . . . 41 100 . Volleys Fired 69 | 12 16 14 . 17 10 . Largest 2 | 2 2 2 . 1 1 . Hottest 120 | 80 120 120 . 30 30 . Shots Fired 83 | 15 22 19 . 17 10 . Gun 62 | 15 11 13 . 15 8 . Cannon . | . . . . . . . Launcher 4 | . . . . 2 2 . Special 17 | . 11 6 . . . . Kinetic 52 | 9 7 13 . 15 8 . Thermal 17 | . 11 6 . . . . Explosive 4 | . . . . 2 2 . Electromagnetic 10 | 6 4 . . . . . Robot Hit Streak 8 | 8 5 2 . 4 2 . Robot Miss Streak 4 | 1 2 4 . 4 2 . Penetration Max . | . . . . . . . Secondary Targets 1 | . 1 . . . . . Max Gunslinging Chain 1 | . 1 . . . . . Shots Hit Robots 74 | 12 8 8 . 7 6 33 Core Hits 30 | 5 4 5 . 6 1 9 Critical Kills 1 | . . . . . . 1 Critical Parts Destroyed 9 | . . . . . 2 7 Critical Strikes 10 | . . . . . 2 8 Smash 10 | . . . . . 2 8 Melee Attacks 87 | . . . . . 14 73 Impact 82 | . . . . . 14 68 Slashing 5 | . . . . . . 5 Piercing . | . . . . . . . Sneak Attacks 15 | . . . . . 3 12 Combat Hostiles 3 | . . . . . . 3 Follow-up Attacks 3 | . . . . . . 3 Damage Inflicted 2919 | 162 353 82 . 150 252 1920 Guns 376 | 153 78 58 . 61 26 . Cannons . | . . . . . . . Explosions 340 | . 251 . . 89 . . Melee 2146 | . . . . . 226 1920 Ramming 9 | 9 . . . . . . Kinetic 289 | 98 46 58 . 61 26 . Thermal 299 | . 275 24 . . . . Explosive 89 | . . . . 89 . . Electromagnetic 87 | 55 32 . . . . . Impact 1999 | . . . . . 226 1773 Slashing 147 | . . . . . . 147 Piercing . | . . . . . . . Highest Corruption 3 | . . 1 1 1 . 3 Average Corruption 1 | . . 1 1 1 . 2 Corruption Purged . | . . . . . . . Corruption Blocked . | . . . . . . . Effects 27 | . . 2 . 3 . 22 Message Errors 6 | . . . . . . 6 Matter Fused 8 | . . 2 . 1 . 5 Heat Flow Errors 4 | . . . . . . 4 Energy Discharges 5 | . . . . 1 . 4 Data Loss (minor) 2 | . . . . . . 2 Data Loss (major) 2 | . . . . 1 . 1 Overload Shots . | . . . . . . . Overflow Damage 989 | . 163 . . 11 144 671 Projectiles . | . . . . . . . Explosions 174 | . 163 . . 11 . . Melee 815 | . . . . . 144 671 Knockbacks 6 | . . . . . . 6 Impact 6 | . . . . . . 6 Kinetic . | . . . . . . . Secondary . | . . . . . . . Self-Inflicted Damage 217 | . 200 . . 17 . . Shots 4 | . 3 . . 1 . . Rammed . | . . . . . . . Targets Rammed 3 | 3 . . . . . . Kicked 3 | 3 . . . . . . Crushed . | . . . . . . . Highest Temperature 235 | 54 62 80 . 8 . 235 Average Temperature 42 | 29 24 35 . 4 . 103 Received Heat Transfer 189 | . 42 . . . 36 111 Effects 1 | . . . . . . 1 Interference 1 | . . . . . . 1 Siege Activations . | . . . . . . . Martial Activations . | . . . . . . . Shielding Activations . | . . . . . . . Robots Disrupted . | . . . . . . . Combat Hostiles . | . . . . . . . Robots Corrupted 8 | . . . . . 1 7 Combat Hostiles 3 | . . . . . . 3 Parts Fried 9 | 1 . . . . 2 6 Impact Corruptions 30 | . . . . . 4 26 Robots Melted . | . . . . . . . Combat Hostiles . | . . . . . . . Parts Melted 1 | . 1 . . . . . Heat Transferred 300 | . 250 50 . . . . Parts Sabotaged . | . . . . . . . Parts Stolen . | . . . . . . . Parts Stripped . | . . . . . . . Power Chain Reactions 1 | . 1 . . . . . Alert | -11 -10 -10 -10 -9 -8 -7 ------- Run | Yrd Mat Min Exi Min Mat Fac Maximum Alert Level . | . . . . . . . Low Security (%) 100 | 100 100 100 . 100 100 100 Level 1 . | . . . . . . . Level 2 . | . . . . . . . Level 3 . | . . . . . . . Level 4 . | . . . . . . . Level 5 . | . . . . . . . High Security . | . . . . . . . Max Security . | . . . . . . . Peak Influence 168 | 5 168 117 . 15 36 121 Initial 55 | . . 55 . . . . Average 33 | . 95 46 . 1 4 38 Influence Increases 1090 | 15 352 103 . 33 134 453 Destroy 0b10 Robot/C 420 | . 100 60 . . 40 220 Destroy 0b10 Robot/NC 80 | 15 5 . . . 20 40 Destroy Leader 100 | . 22 10 . . 14 54 Allied During Kill 12 | . . . . . 12 . Successful Hack 57 | . 3 . . . 8 46 Disable Machine 60 | . 45 . . . 15 . Destroy Structure 61 | . 12 3 . 18 10 18 Partial Spotted 30 | . . . . 15 . 15 Lose Combat Pursuer 270 | . 165 30 . . 15 60 Influence Decreases 1015 | 15 210 245 . 33 134 378 Entered New Map 87 | . . 87 . . . . Time Decay 693 | 15 150 128 . 23 119 258 Lost Part 201 | . 60 10 . 10 1 120 Lost Ally 34 | . . 20 . . 14 . Squads Dispatched 14 | . 1 . . . 2 11 Investigation 3 | . . . . . 2 1 Extermination 5 | . . . . . . 5 Reinforcement 4 | . 1 . . . . 3 Assault 2 | . . . . . . 2 Garrison . | . . . . . . . Intercept . | . . . . . . . Searches Triggered . | . . . . . . . Construction Impeded . | . . . . . . . Haulers Reinforced 1 | . . . . . . 1 Active Scanning Responses . | . . . . . . . Cargo Convoy Interrupts 1 | . . . . . . 1 Stealth | -11 -10 -10 -10 -9 -8 -7 --------- Run | Yrd Mat Min Exi Min Mat Fac Distress Signals 4 | . 3 . . . 1 . Communications Jammed . | . . . . . . . Distress Signals . | . . . . . . . Times Spotted 71 | . 25 3 . 11 4 28 Peak Tracking Total 12 | . 9 3 . 4 2 12 Tactical Retreats 7 | . 3 1 . 1 1 1 Traps | -11 -10 -10 -10 -9 -8 -7 ------- Run | Yrd Mat Min Exi Min Mat Fac Traps Triggered 1 | . . 1 . . . . Indirectly . | . . . . . . . Trap Hack Attempts . | . . . . . . . Triggered . | . . . . . . . Disarmed . | . . . . . . . Reprogrammed . | . . . . . . . Reused . | . . . . . . . Traps Extracted . | . . . . . . . Installed . | . . . . . . . Triggered . | . . . . . . . Machines | -11 -10 -10 -10 -9 -8 -7 ---------- Run | Yrd Mat Min Exi Min Mat Fac Machines Disabled 4 | . 3 . . . 1 . Max in Single Turn 2 | . 2 . . . 1 . Garrison Access 2 | . . . . . 1 1 Machines Repaired . | . . . . . . . Machines Dismantled . | . . . . . . . Machines Sabotaged . | . . . . . . . Overloaded Fab Kills . | . . . . . . . Hacking | -11 -10 -10 -10 -9 -8 -7 --------- Run | Yrd Mat Min Exi Min Mat Fac Machines Accessed 27 | . 4 2 2 . 6 13 Terminals 14 | . 3 . . . 5 6 Fabricators 4 | . . . . . . 4 Repair Stations 2 | . . . . . . 2 Recycling Units 2 | . 1 . . . . 1 Scanalyzers . | . . . . . . . Garrison Access 1 | . . . . . 1 . Total Hacks 76 | . 14 2 2 . 21 37 Successful 30 | . 7 2 2 . 7 12 Failed 46 | . 7 . . . 14 25 Catastrophic 14 | . 2 . . . 5 7 Database Lockouts . | . . . . . . . Manual 47 | . 12 . 1 . 14 20 Terminals 47 | . 10 . . . 20 17 Fabricators 11 | . . . . . . 11 Repair Stations 7 | . . . . . . 7 Recycling Units 6 | . 4 . . . . 2 Scanalyzers . | . . . . . . . Garrison Access 1 | . . . . . 1 . Terminal Hacks 17 | . 3 2 2 . 4 6 Record 1 | . . . 1 . . . Part Schematic 1 | . . . . . . 1 Prototype ID Bank 3 | . . . . . 1 2 Open Door 2 | . . 2 . . . . Branch Access Points 2 | . 1 . . . . 1 Emergency Access Points 1 | . 1 . . . . . Locate Traps 2 | . . . . . . 2 Recall Investigation 1 | . . . . . 1 . Registered Components 1 | . . . . . 1 . Zone Layout 2 | . 1 . . . 1 . Proto ID Catalog 1 | . . . 1 . . . Fabricator Hacks 1 | . . . . . . 1 Network Status 1 | . . . . . . 1 Repair Station Hacks 2 | . . . . . . 2 Scan Component 1 | . . . . . . 1 Repair 1 | . . . . . . 1 Recycling Unit Hacks 1 | . 1 . . . . . Retrieve Components 1 | . 1 . . . . . Scanalyzer . | . . . . . . . Garrison Access Hacks 1 | . . . . . 1 . Seal Access 1 | . . . . . 1 . Unauthorized Hacks 8 | . 3 . . . 2 3 Terminals 5 | . 1 . . . 2 2 Botnet 5 | . 1 . . . 2 2 Fabricators 1 | . . . . . . 1 Fabnet 1 | . . . . . . 1 Repair Stations . | . . . . . . . Recycling Units 2 | . 2 . . . . . Reject 1 | . 1 . . . . . Recyclers 1 | . 1 . . . . . Scanalyzers . | . . . . . . . Garrison Access . | . . . . . . . Data Cores Recovered . | . . . . . . . Used . | . . . . . . . Hacking Detections 20 | . 3 . . . 5 12 Full Trace Events 3 | . . . . . 2 1 Feedback Events . | . . . . . . . Feedback Blocked . | . . . . . . . Robot Schematics Acquired . | . . . . . . . Robots Built . | . . . . . . . Authchips . | . . . . . . . Time . | . . . . . . . Total Robot Build Rating . | . . . . . . . Part Schematics Acquired 1 | . . . . . . 1 Parts Built . | . . . . . . . Authchips . | . . . . . . . Time . | . . . . . . . Total Part Build Rating . | . . . . . . . Part Studies Acquired . | . . . . . . . Parts Repaired 1 | . . . . . . 1 Time 22 | . . . . . . 22 Parts Recycled . | . . . . . . . Recycled Matter . | . . . . . . . Retrieved Matter . | . . . . . . . Retrieved Components 5 | . 5 . . . . . Parts Scanalyzed . | . . . . . . . Part Schematics Acquired . | . . . . . . . Parts Damaged . | . . . . . . . Bothacking | -11 -10 -10 -10 -9 -8 -7 ------------ Run | Yrd Mat Min Exi Min Mat Fac Used RIF Installer . | . . . . . . . Robots Hacked . | . . . . . . . Non-combat . | . . . . . . . Combat . | . . . . . . . Robot Hacks Applied . | . . . . . . . Relay Couplers Released 1 | . . . . . . 1 Machine Destruction 1 | . . . . . . 1 Fabnet Peak Effective % . | . . . . . . . Robots Rewired . | . . . . . . . Allies Hacked . | . . . . . . . Hacks Repelled . | . . . . . . . Allies | -11 -10 -10 -10 -9 -8 -7 -------- Run | Yrd Mat Min Exi Min Mat Fac Total Allies 5 | . . . . 5 . . Largest Group 5 | . . . . 5 4 . Highest-Rated Group 81 | . . . . 81 73 . Highest-Rated Ally 31 | . . . . 31 31 . Total Orders 5 | . . 5 . . . . ROAM 1 | . . 1 . . . . EXPLORE 2 | . . 2 . . . . RETURN 2 | . . 2 . . . . Ally Attacks 68 | . . 1 . 35 32 . Total Damage 636 | . . . . 305 331 . Kills 13 | . . . . 8 5 . Allies Corrupted . | . . . . . . . Allies Melted . | . . . . . . . Intel | -11 -10 -10 -10 -9 -8 -7 ------- Run | Yrd Mat Min Exi Min Mat Fac Active Infowar (turns) 2641 | 73 199 302 26 . 367 1674 Sensors 476 | . 148 302 26 . . . Terrain 1750 | . . . . . 367 1383 Traps 1431 | . . . . . . 1431 Seismic 124 | 73 51 . . . . . Robot Analysis Total . | . . . . . . . Derelict Logs Recovered 1 | . . 1 . . . . Drone Launches 3 | . . 3 . . . . Drone Recoveries 2 | . . 2 . . . . Exploration | -11 -10 -10 -10 -9 -8 -7 ------------- Run | Yrd Mat Min Exi Min Mat Fac Turns Passed 3882 | 114 353 416 125 327 763 1784 Spaces Moved 4324 | 65 415 618 326 308 867 1725 Core 56 | . 53 . . . . 3 Treads 8 | . . 8 . . . . Legs 46 | 46 . . . . . . Wheels 61 | 19 42 . . . . . Hover 2126 | . . . . . 419 1707 Flight 2027 | . 320 610 326 308 448 15 Fastest Speed 37 | 80 37 37 37 37 37 37 Average Speed 44 | 108 43 38 37 37 45 45 Slowest Speed 200 | 120 80 160 37 37 56 200 Overloaded Moves . | . . . . . . . Propulsion Burnouts . | . . . . . . . Robots Hopped 20 | . 8 6 . 2 2 2 Potential Cave-ins 6 | . . . . . 6 . Cave-ins Triggered . | . . . . . . . Exploration Rate (%) 51 | 4 66 99 71 38 43 38 Regions Visited 6 Branch Regions 3 Pre-discovered Areas 1 | . . . 1 . . . Known Exits Taken 1 | . 1 . . . . . Unknown Exits Taken 5 | 1 . 1 1 1 1 . Scrap Searched 2 | . . 1 . 1 . . Spaces Dug 33 | . 8 1 . . 6 18 Terrain Destroyed 92 | . 12 3 . 24 35 18 Melee 24 | . . . . . 6 18 Projectile 11 | . 8 3 . . . . AOE 57 | . 4 . . 24 29 . Terrain Rammed . | . . . . . . . Walls Destroyed . | . . . . . . . Machines Disabled . | . . . . . . . Actions | -11 -10 -10 -10 -9 -8 -7 --------- Run | Yrd Mat Min Exi Min Mat Fac Total 6007 | 93 533 760 331 506 1194 2590 Wait 1306 | 2 96 114 . 169 244 681 Move 4278 | 64 398 605 325 303 862 1721 Hop 20 | . 8 6 . 2 2 2 Pick Up 101 | 4 4 3 1 2 35 52 Fast Attach 25 | 2 6 3 1 2 8 3 Attach 18 | . 1 1 . 1 4 11 Detach 3 | . . 1 . . 2 . Swap 38 | 2 . 6 . 4 5 21 Drop 65 | 4 4 7 4 6 8 32 Fire 69 | 12 16 14 . 17 10 . Melee 81 | . . . . . 14 67 Ram . | . . . . . . . Kick 3 | 3 . . . . . . Crush . | . . . . . . . Escape Stasis . | . . . . . . . Rewire . | . . . . . . . Trap . | . . . . . . . Miscellaneous . | . . . . . . . Route ------- -11/Scrapyard -10/Materials -10/Mines (discovered 4 exits: *Mat x2 / *Exi / *Sub) -10/Exiles -9/Mines (discovered 2 exits: *Mat x2) -8/Materials -7/Factory (discovered 4 exits: [*Fac x2] / Low x2) History --------- Turn | Location | Event 1 | -11/Scrapyard | Discovered new exit (range 3) 115 | -11/Scrapyard | Entered Materials 197 | -10/Materials | Lost 6 parts (1p2n1u2w) 315 | -10/Materials | Build established: Mutant 385 | -10/Materials | Identified exit to Mines 468 | -10/Materials | Entered Mines 530 | -10/Mines | Core integrity fell below 50% 623 | -10/Mines | Met a Derelict who couldn't figure out how to use a Trap Extractor 638 | -10/Mines | Discovered new exit (range 10) 641 | -10/Mines | Identified exit to Subcaves 659 | -10/Mines | Discovered new exit (range 5) 660 | -10/Mines | Identified exit to Materials 665 | -10/Mines | Found the Drone Emporium 667 | -10/Mines | Found Prototype Device 667 | -10/Mines | Identified Bomb Drone Bay 727 | -10/Mines | Discovered exit to Materials (range 52) 882 | -10/Mines | Deemed a non-threat by the Exiles lab entrance 882 | -10/Mines | Discovered new exit (range 5) 884 | -10/Mines | Entered Exiles 894 | -10/Exiles | Met 8R-AWN 900 | -10/Exiles | Met EX-HEX 918 | -10/Exiles | Met EX-DEC 929 | -10/Exiles | Learned location of Zion (-7) 953 | -10/Exiles | Met EX-BIN 959 | -10/Exiles | Aligned with FarCom system 959 | -10/Exiles | Given EX-Vault access code 968 | -10/Exiles | Opened EX-Vault 972 | -10/Exiles | Found Lightpack 2.0 983 | -10/Exiles | Warned to stay clear of 0b10 Research branches 1006 | -10/Exiles | Discovered new exit (range 11) 1009 | -10/Exiles | Left Exiles lab with Lightpack 2.0 1009 | -10/Exiles | Entered Mines 1010 | -9/Mines | Assisted by bots powering up and referring to "LRC-V3" 1015 | -9/Mines | Assembled infested the area 1288 | -9/Mines | Discovered new exit (range 14) 1322 | -9/Mines | Discovered new exit (range 10) 1336 | -9/Mines | Entered Materials 1336 | -8/Materials | Accompanied by 4 allies 1336 | -8/Materials | Evolved 4 slots: Propulsion x2, Utility x2 1342 | -8/Materials | Led the pair of lost Derelicts to an unsafe place 1688 | -8/Materials | Build established: Scavenger-Scout 1708 | -8/Materials | Discovered new exit (range 15) 2050 | -8/Materials | Build established: Hauler-Mutant 2099 | -8/Materials | Entered Factory 2099 | -7/Factory | Evolved 2 slots: Utility x2 2404 | -7/Factory | Build established: Hauler-Scout 2717 | -7/Factory | Discovered new exit (range 14) 2727 | -7/Factory | Identified exit to Lower Caves 3396 | -7/Factory | Lost 4 parts (3n1u) 3488 | -7/Factory | Cargo convoy interrupted 3708 | -7/Factory | Repaired Gravmag System 3845 | -7/Factory | Discovered new exit (range 16) 3846 | -7/Factory | Core integrity fell below 50% 3875 | -7/Factory | Core integrity fell below 20% 3883 | -7/Factory | Destroyed by C-17 Slicer with Blade Saw Last Messages --------------- 03863_ U-05 Engineer lays Concrete. 03864_ U-05 Engineer builds a Wall. 03865_ U-05 Engineer lays Concrete. 03866_ ALERT: Suspicious intruders detected, dispatching Cutter reinforcements to area. 03869_ Gravmag System destroyed. 03872_ Gravmag System severed. 03873_ U-05 Engineer lays Concrete. 03873_ U-05 Engineer builds a Door. 03874_ Axe severed. 03874_ U-05 Engineer lays Concrete. 03875_ Knocked back. 03875_ P-60 Hacker resets C-17 Slicer, system corruption cleaned. 03876_ K-01 Serf collects debris. 03877_ U-05 Engineer lays Concrete. 03877_ Imp. Utility Shielding destroyed. 03877_ Trap Scanner destroyed. 03877_ U-05 Engineer lays Concrete. 03878_ U-05 Engineer builds a Wall. 03878_ U-05 Engineer lays Concrete. Map ----- +----------------------------------------------------+ | ?????????????????????#???"??????#?#??# | | ???????????????????#????????????#??### | | ?????????????????????????"???"????##?? | | ??????????????????????????? ???###??## | | ???????????????????????????? ????##??? | | ????????????????###########?#?????##?? | | ????????????????# #??##???##?# | | ????????????????# ###???#?#?#? | | ????????????????# #???##?#?### | | ??????????#????## ##?###??##?# | | ??????????# ####" ##?#??#????# | | ??????????# ; "########### | | ????????? # | | ????????? + ! """" | | ??????????# ""R" | | ??????????# "" " | | ??????????# | | ??????????# | | ??????????# | | ??????????# ! | | ??????????+ ; | | ??????????# # " | | ???######## ########" | | ???# ####???## | | ???# < ##c####### ##/#### | | ???# @cHc c c H | | ???# c gg | | ???# g % % | | ???# p | | ???# ^ | | ???###+#+#;#################/### +#### | | ????????? ??????????##?#??#%= | | ???????? ???????????#??##?# /"""""" | | ??????? ????????????#?##?# """""" | | ??????"" ??????????????#?#?# """""" | | ?????""" ??????????????????# """""" | | ??????""???????????????????# | | ??????? ???????????????????# " | | ???????????????????????????# " | | ???????????????????????????# ] ?? | | ???????????????????????????# ? ? | | ???????????????????????????# ??? | | ???????????????????????????# ??? | | ???????????????????????????########??? | | ?????????????????????????????????????? | | ???????????????????????????????????#?? | | ???????????????????????????????#?#??#? | | ??????????????????????????????######## | | ??????????????????????????????# | | ?????????????????????????#????# " | +----------------------------------------------------+ Best States ------------- Heat Dissipation 35 Energy Generation 15 Energy Capacity 250 Matter Stores 300 Matter Capacity 300 Sight Range 16 Robot Scan Range 14 Terrain Scan Range 16 Terrain Scan Density 210 Armor Coverage 150 Utility Shielding 66 Melee Speed Boost 20 Evasion (%) 62 Targeting Accuracy 8 Melee Accuracy 5 Recoil Reduction 2 Item Schematics ----------------- Imp. Airjet | -7/Factory | Hacked Robot Schematics ------------------ None Fabricated ------------ Nothing Repaired ---------- Gravmag System | 40% | -7/Factory Studied --------- None Alien Tech Used ----------------- None Achievements -------------- None Challenges ------------ None Game ------ Seed PhysicsHypertargetingEdition Manual? 0 Play Time 02:37:42 Cumulative 336.4 hours Start 2026.09.23 @ 15:21:05 End 2026.09.23 @ 18:42:07 Sessions 1 Manual Loads 0 Difficulty Rogue Special Mode None Game No. 104 Rogue 104 Adventurer 0 Explorer 0 Win Type - Total 2 Types 2/0/0/0/0/0/0/0/0/0 Lore% 62 Gallery% 62 Achievement% 47 Wizard Run 0 Options --------- Layout 0 ASCII 0 Keyboard 0 Movement Numpad Keybinds 1 Fullscreen 2 Font 18/X11 Map View 76x50 Zoom Use 0% Tactical HUD 1 Map Filters NONE Filters NONE Steam 1 RUN: 6125fd36-1416-4104-aa60-0d6a2398e779